Cogmind - Beta 13 @@@ ROGUE MODE // 2024.05.15 @ 00:24:01 Player: GFYguy Result: Destroyed by G-47 Trooper with Particle Gun Performance ------------- Evolutions (2) 1000 Regions Visited (4) 800 Robots Destroyed (13) 65 Value Destroyed (380) 380 Prototype IDs (2) 40 Alien Tech Used (0) 0 Bonus (0) 0 TOTAL SCORE: 2285 Bonus ------- None Cogmind --------- Core Integrity 0/550 Matter 300/300 Energy 100/100 System Corruption 0% Temperature Cool (9) Movement Core (200) Ox3 Location -8/Materials Parts ------- > --- POWER (1) -------- (None) > --- PROPULSION (4) --- (None) > --- UTILITY (4) ------ Medium Storage Unit > --- WEAPON (2) ------- (None) > --- INVENTORY (10) --- Light Nuclear Core Light Nuclear Core System Shield System Shield System Shield Long-range Tractor Beam Beam Rifle Beam Rifle Beam Rifle Bore Cannon Peak State ------------ > --- POWER ------------ Light Nuclear Core > --- PROPULSION ------- Hover Unit Hover Unit Hover Unit > --- UTILITY ---------- Medium Storage Unit System Shield > --- WEAPON ----------- Beam Rifle Bore Cannon > --- INVENTORY -------- Light Nuclear Core Light Nuclear Core Light Nuclear Core Structural Scanner System Shield System Shield System Shield Long-range Tractor Beam Beam Rifle Beam Rifle [Rating: 19] Favorites ----------- Power Light Nuclear Core Engine Light Ion Engine Power Core Light Nuclear Core Propulsion Hover Unit Leg Aluminum Leg Hover Unit Hover Unit Utility Structural Scanner Device Structural Scanner Storage Medium Storage Unit Hackware System Shield Weapon Beam Rifle Energy Gun Beam Rifle Ballistic Gun Light Assault Rifle Ballistic Cannon Bore Cannon Build | -11 -10 -9 -9 -8 ------- Run | Yrd Mat Mat Min Mat Slots Evolved 4 | . . 2 . 2 Power . | . . . . . Propulsion 2 | . . 2 . . Utility 2 | . . . . 2 Weapon . | . . . . . Parts Attached 39 | 7 14 7 9 2 Power 5 | 2 1 1 1 . Engine 2 | 2 . . . . Core 3 | . 1 1 1 . Reactor . | . . . . . Propulsion 11 | 2 5 2 2 . Treads . | . . . . . Leg 2 | 2 . . . . Wheel . | . . . . . Hover 9 | . 5 2 2 . Flight . | . . . . . Utility 7 | 1 1 2 1 2 Device 4 | . 1 1 . 2 Storage 2 | 1 . 1 . . Processor . | . . . . . Hackware 1 | . . . 1 . Protection . | . . . . . Artifact . | . . . . . Weapon 16 | 2 7 2 5 . Energy Gun 13 | 1 6 2 4 . Energy Cannon . | . . . . . Ballistic Gun 2 | 1 1 . . . Ballistic Cannon 1 | . . . 1 . Launcher . | . . . . . Special Weapon . | . . . . . Impact Weapon . | . . . . . Slashing Weapon . | . . . . . Piercing Weapon . | . . . . . Special Melee Weapon . | . . . . . Unidentified Prototypes . | . . . . . Parts Lost 10 | . 2 . 3 5 Power 1 | . . . . 1 Propulsion 6 | . 1 . 3 2 Utility 2 | . . . . 2 Weapon 1 | . 1 . . . Highest Loss Streak 5 | . 2 . 2 5 To Critical Strikes . | . . . . . Average Slot Usage (%) 88 | . 92 98 93 51 Engine 4 | . 11 . . . Core 7 | . 2 11 11 4 Leg 2 | . 6 . . . Hover 28 | . 21 44 38 7 Device 9 | . 12 10 4 13 Storage 11 | . 14 11 11 9 Hackware 3 | . . . 6 9 Energy Gun 17 | . 15 22 21 7 Ballistic Gun 2 | . 7 . . . Naked Turns . | . . . . . Heaviest Build 23 | 11 12 22 22 23 Greatest Support 24 | 20 20 24 24 12 Greatest Overweight (x) 5 | . 1 . 1 5 Average Overweight (x) . | . . . . 1 Largest Inventory Capacity 10 | 8 8 10 10 10 Average Capacity 9 | 6 8 9 10 10 Most Carried 10 | 4 8 10 10 10 Average Carried 7 | 1 6 8 9 9 Final Capacity 10 | 8 8 10 10 10 Final Carried 10 | 2 7 10 10 10 Class Distribution -------------------- 100% | Mutant Dominant Class ---------------- Mutant | -10/Materials Mutant | -9/Materials Mutant | -9/Mines Mutant | -8/Materials Resources | -11 -10 -9 -9 -8 ----------- Run | Yrd Mat Mat Min Mat Matter Collected 595 | 229 174 45 147 . Remotely . | . . . . . Salvage Created 452 | . 212 45 195 . Parts 22 | . 10 6 6 . Haulers Intercepted . | . . . . . Recyclers Shooed . | . . . . . Parts Field Recycled . | . . . . . Retrieved Matter . | . . . . . Parts Self-Destructed . | . . . . . Prevented . | . . . . . Kills | -11 -10 -9 -9 -8 ------- Run | Yrd Mat Mat Min Mat Combat Hostiles Destroyed 12 | . 4 3 5 . Guns 10 | . 3 3 4 . Classes Destroyed 3 | . 2 1 . . Watcher 1 | . 1 . . . Swarmer 4 | . . 3 1 . Grunt 8 | . 4 . 4 . Best Kill Streak 3 | . 2 3 2 . Combat Bots Only 3 | . 2 3 2 . Max Kills in Single Turn 1 | . 1 1 1 . Gunslinging . | . . . . . Exploded . | . . . . . Melee . | . . . . . Uniques/NPCs Destroyed . | . . . . . Combat | -11 -10 -9 -9 -8 -------- Run | Yrd Mat Mat Min Mat Hostile Shots Fired 164 | . 26 8 33 97 Missed 38 | . 5 4 5 24 Damage Taken 1504 | . 322 35 363 784 Core 741 | . 107 10 69 555 Absorbed by Shields . | . . . . . Core Remaining (%) 79 | 100 57 . 80 . Volleys Fired 57 | . 30 7 20 . Largest 2 | . 2 2 2 . Hottest 113 | . 80 112 113 . Shots Fired 82 | . 36 12 34 . Gun 76 | . 36 12 28 . Cannon 6 | . . . 6 . Launcher . | . . . . . Special . | . . . . . Kinetic 9 | . 3 . 6 . Thermal 68 | . 28 12 28 . Explosive . | . . . . . Electromagnetic 5 | . 5 . . . Robot Hit Streak 12 | . 12 2 5 . Robot Miss Streak 5 | . 2 5 3 . Penetration Max . | . . . . . Secondary Targets 1 | . . 1 . . Max Gunslinging Chain 1 | . . 1 . . Shots Hit Robots 52 | . 29 3 20 . Core Hits 25 | . 11 3 7 4 Critical Kills . | . . . . . Critical Parts Destroyed 1 | . . . 1 . Critical Strikes 5 | . 1 . 4 . Burn 4 | . 1 . 3 . Destroy 1 | . . . 1 . Melee Attacks . | . . . . . Impact . | . . . . . Slashing . | . . . . . Piercing . | . . . . . Sneak Attacks . | . . . . . Combat Hostiles . | . . . . . Follow-up Attacks . | . . . . . Damage Inflicted 721 | . 344 42 324 11 Guns 665 | . 344 42 279 . Cannons 45 | . . . 45 . Explosions . | . . . . . Melee . | . . . . . Ramming 11 | . . . . 11 Kinetic 63 | . 18 . 45 . Thermal 594 | . 273 42 279 . Explosive . | . . . . . Electromagnetic 53 | . 53 . . . Impact . | . . . . . Slashing . | . . . . . Piercing . | . . . . . Highest Corruption . | . . . . . Average Corruption . | . . . . . Corruption Purged . | . . . . . Corruption Blocked . | . . . . . Overload Shots . | . . . . . Overflow Damage . | . . . . . Projectiles . | . . . . . Explosions . | . . . . . Melee . | . . . . . Knockbacks . | . . . . . Impact . | . . . . . Kinetic . | . . . . . Secondary . | . . . . . Self-Inflicted Damage 4 | . . . . 4 Shots . | . . . . . Rammed 7 | . . . . 7 Targets Rammed 7 | . . . . 7 Kicked . | . . . . . Crushed . | . . . . . Highest Temperature 449 | . 227 240 449 . Average Temperature 145 | . 98 112 196 . Received Heat Transfer 504 | . 174 6 216 108 Effects 7 | . 1 1 5 . Shutdowns 2 | . . . 2 . Energy Bleed 1 | . . 1 . . Interference 3 | . 1 . 2 . Short Circuit 1 | . . . 1 . Siege Activations . | . . . . . Robots Corrupted . | . . . . . Combat Hostiles . | . . . . . Parts Fried . | . . . . . Impact Corruptions . | . . . . . Robots Melted 2 | . 1 . 1 . Combat Hostiles 2 | . 1 . 1 . Parts Melted 5 | . 1 . 4 . Heat Transferred 1769 | . 733 111 925 . Parts Sabotaged . | . . . . . Parts Stolen . | . . . . . Parts Stripped . | . . . . . Power Chain Reactions . | . . . . . Alert | -11 -10 -9 -9 -8 ------- Run | Yrd Mat Mat Min Mat Peak Influence 201 | . 170 201 187 92 Initial 78 | . . 71 78 72 Average 90 | . 68 126 119 75 Maximum Alert Level 1 | . . 1 . . Low Security (%) 99 | 100 100 97 100 100 Level 1 . | . . 2 . . Level 2 . | . . . . . Level 3 . | . . . . . Level 4 . | . . . . . Level 5 . | . . . . . High Security . | . . . . . Max Security . | . . . . . Squads Dispatched 1 | . . 1 . . Investigation . | . . . . . Extermination . | . . . . . Reinforcement 1 | . . 1 . . Assault . | . . . . . Garrison . | . . . . . Intercept . | . . . . . Searches Triggered . | . . . . . Construction Impeded . | . . . . . Haulers Reinforced . | . . . . . Active Scanning Responses . | . . . . . Cargo Convoy Interrupts . | . . . . . Stealth | -11 -10 -9 -9 -8 --------- Run | Yrd Mat Mat Min Mat Distress Signals 4 | . 2 1 . 1 Communications Jammed . | . . . . . Distress Signals . | . . . . . Times Spotted 40 | . 9 10 6 15 Peak Tracking Total 13 | . 3 7 2 13 Tactical Retreats 5 | . 2 1 1 1 Traps | -11 -10 -9 -9 -8 ------- Run | Yrd Mat Mat Min Mat Traps Triggered 1 | . 1 . . . Indirectly . | . . . . . Trap Hack Attempts . | . . . . . Triggered . | . . . . . Disarmed . | . . . . . Reprogrammed . | . . . . . Reused . | . . . . . Traps Extracted . | . . . . . Installed . | . . . . . Triggered . | . . . . . Machines | -11 -10 -9 -9 -8 ---------- Run | Yrd Mat Mat Min Mat Machines Disabled . | . . . . . Max in Single Turn . | . . . . . Machines Repaired . | . . . . . Machines Dismantled . | . . . . . Machines Sabotaged . | . . . . . Overloaded Fab Kills . | . . . . . Hacking | -11 -10 -9 -9 -8 --------- Run | Yrd Mat Mat Min Mat Machines Accessed 7 | . 5 1 1 . Terminals 6 | . 4 1 1 . Fabricators . | . . . . . Repair Stations . | . . . . . Recycling Units 1 | . 1 . . . Scanalyzers . | . . . . . Garrison Access . | . . . . . Total Hacks 21 | . 15 2 4 . Successful 12 | . 9 1 2 . Failed 9 | . 6 1 2 . Catastrophic . | . . . . . Database Lockouts . | . . . . . Manual . | . . . . . Terminals 20 | . 14 2 4 . Fabricators . | . . . . . Repair Stations . | . . . . . Recycling Units 1 | . 1 . . . Scanalyzers . | . . . . . Garrison Access . | . . . . . Terminal Hacks 11 | . 8 1 2 . Record 3 | . 1 . 2 . Prototype ID Bank 1 | . 1 . . . Emergency Access Points 1 | . 1 . . . Alert Level 2 | . 1 1 . . Locate Traps 1 | . 1 . . . Hauler Manifests 1 | . 1 . . . Zone Layout 2 | . 2 . . . Fabricator Hacks . | . . . . . Repair Station Hacks . | . . . . . Recycling Unit Hacks 1 | . 1 . . . Report Inventory 1 | . 1 . . . Scanalyzer . | . . . . . Garrison Access Hacks . | . . . . . Unauthorized Hacks . | . . . . . Terminals . | . . . . . Fabricators . | . . . . . Repair Stations . | . . . . . Recycling Units . | . . . . . Scanalyzers . | . . . . . Garrison Access . | . . . . . Data Cores Recovered . | . . . . . Used . | . . . . . Hacking Detections 6 | . 4 1 1 . Full Trace Events . | . . . . . Feedback Events . | . . . . . Feedback Blocked . | . . . . . Robot Schematics Acquired . | . . . . . Robots Built . | . . . . . Authchips . | . . . . . Time . | . . . . . Total Robot Build Rating . | . . . . . Part Schematics Acquired . | . . . . . Parts Built . | . . . . . Authchips . | . . . . . Time . | . . . . . Total Part Build Rating . | . . . . . Parts Repaired . | . . . . . Time . | . . . . . Parts Recycled . | . . . . . Recycled Matter . | . . . . . Retrieved Matter . | . . . . . Retrieved Components . | . . . . . Parts Scanalyzed . | . . . . . Part Schematics Acquired . | . . . . . Parts Damaged . | . . . . . Bothacking | -11 -10 -9 -9 -8 ------------ Run | Yrd Mat Mat Min Mat Used RIF Installer . | . . . . . Robots Hacked . | . . . . . Non-combat . | . . . . . Combat . | . . . . . Robot Hacks Applied . | . . . . . Relay Couplers Released . | . . . . . Fabnet Peak Effective % . | . . . . . Robots Rewired . | . . . . . Allies Hacked . | . . . . . Hacks Repelled . | . . . . . Allies | -11 -10 -9 -9 -8 -------- Run | Yrd Mat Mat Min Mat Total Allies . | . . . . . Largest Group . | . . . . . Highest-Rated Group . | . . . . . Highest-Rated Ally . | . . . . . Total Orders . | . . . . . Ally Attacks . | . . . . . Total Damage . | . . . . . Kills . | . . . . . Allies Corrupted . | . . . . . Allies Melted . | . . . . . Intel | -11 -10 -9 -9 -8 ------- Run | Yrd Mat Mat Min Mat Robot Analysis Total . | . . . . . Derelict Logs Recovered . | . . . . . Drone Launches . | . . . . . Drone Recoveries . | . . . . . Exploration | -11 -10 -9 -9 -8 ------------- Run | Yrd Mat Mat Min Mat Turns Passed 991 | 54 358 109 351 119 Spaces Moved 934 | 42 326 142 369 55 Core 30 | 16 . . . 14 Treads . | . . . . . Legs 88 | 26 62 . . . Wheels . | . . . . . Hover 816 | . 264 142 369 41 Flight . | . . . . . Fastest Speed 48 | 50 56 48 48 116 Average Speed 66 | 93 69 48 56 145 Slowest Speed 300 | 120 120 48 116 300 Overloaded Moves . | . . . . . Propulsion Burnouts . | . . . . . Robots Hopped . | . . . . . Cave-ins Triggered . | . . . . . Exploration Rate (%) 31 | 3 62 19 56 16 Regions Visited 4 Branch Regions 1 Pre-discovered Areas . | . . . . . Known Exits Taken . | . . . . . Unknown Exits Taken 4 | 1 1 1 1 . Scrap Searched 1 | . . . 1 . Spaces Dug . | . . . . . Terrain Destroyed 5 | . . . 5 . Melee . | . . . . . Projectile 5 | . . . 5 . AOE . | . . . . . Terrain Rammed . | . . . . . Walls Destroyed . | . . . . . Machines Disabled . | . . . . . Actions | -11 -10 -9 -9 -8 --------- Run | Yrd Mat Mat Min Mat Total 1211 | 56 422 171 475 87 Wait 122 | . 28 . 73 21 Move 930 | 41 325 141 368 55 Hop . | . . . . . Pick Up 36 | 8 15 10 3 . Fast Attach 1 | . . 1 . . Attach 19 | 6 5 4 2 2 Detach 4 | . 1 1 . 2 Swap 19 | 1 9 2 7 . Drop 16 | . 9 5 2 . Fire 57 | . 30 7 20 . Melee . | . . . . . Ram 7 | . . . . 7 Kick . | . . . . . Crush . | . . . . . Escape Stasis . | . . . . . Rewire . | . . . . . Trap . | . . . . . Miscellaneous . | . . . . . Route ------- -11/Scrapyard -10/Materials (discovered 2 exits: *Mat x2) -9/Materials -9/Mines -8/Materials History --------- Turn | Location | Event 5 | -11/Scrapyard | Discovered new exit (range 15) 55 | -11/Scrapyard | Entered Materials 183 | -10/Materials | Discovered new exit (range 13) 332 | -10/Materials | Build established: Mutant 363 | -10/Materials | Discovered new exit (range 14) 413 | -10/Materials | Entered another Materials area 413 | -9/Materials | Evolved 2 slots: Propulsion x2 498 | -9/Materials | Discovered new exit (range 12) 522 | -9/Materials | Entered Mines 551 | -9/Mines | Met a Derelict bent on vengeance 631 | -9/Mines | Discovered new exit (range 11) 704 | -9/Mines | A weapon hastily lodged in a ceiling crevice suddenly fell to the ground 873 | -9/Mines | Entered Materials 873 | -8/Materials | Evolved 2 slots: Utility x2 979 | -8/Materials | Core integrity fell below 50% 988 | -8/Materials | Core integrity fell below 20% 992 | -8/Materials | Destroyed by G-47 Trooper with Particle Gun Last Messages --------------- Hover Unit destroyed. Critical hit (Burn: +37). Hover Unit destroyed. Lgt. Nuclear Core destroyed. W-25 Informer sends out distress signal. Slammed into S-10 Pest. Heat Sink destroyed. Slammed into S-10 Pest. Destabilizing: System interference. Structural Scanner temporarily disabled. Slammed into S-10 Pest. Structural Scanner broken. Destabilizing: Short circuit. Slammed into S-10 Pest. Broken Structural Scanner destroyed. S-10 Pest destroyed. S-10 Pest suffers critical hit (Burn). S-10 Pest destroyed. M-13 Machinist repairs S-10 Pest. System Shield severed. Map ----- +----------------------------------------------------+ | ????????????? + """ # ??????? | | ?????????????## # ??????? | | ?????????????## " " # ??????? | | ???############ ! "G" ##??????? | | ???############ " ##??????? | | ???## ## ##??????? | | ???## ] ###+########??????? | | ???## ### ########??????? | | ???## # ##????????????? | | ???##[ """ + ##????????????? | | ???## """"" # ##????????????? | | ???## """"" # ##????????????? | | ???## """"" # ##????????????? | | ???# """ # ##????????????? | | ?????######### ##????????????? | | ?????######### ##????????????? | | ????????????## ##????????????? | | ????????????## ##????????????? | | ????????????## ##????????????? | | ?????######### ##????????????? | | ????########## ##????????????? | | ???## Y g # ##????????????? | | ???## """"" # ##########????? | | ???## """"" # ##########????? | | ???##g%""""" # ?? | | ???## @s%%% + ########??????? | | ???## ls"""l# ########??????? | | ???## m R" # ##????????????? | | ???## =%""" # ##????????????? | | ???## g g # ##????????????? | | ???########### # ????????????? | | ???########### # ????????????? | | ????????????## + ????????????? | | ????????????## # ????????????? | | ?????????????? # ????????????? | | ?????????????? # ????????????? | | ?????????????? ##????????????? | | ?????????????? ##????????????? | | ?????????????? ##????????????? | | ?????????????? ##????????????? | | ???????????????????????????????? | | ???????????????????????????????? | | ???????????????????????????????? | | ???????????????????????????????? | | ???????????????????????????????? | | ???????????????????????????????? | | ???????????????????????????????? | | ???????????????????????????????? | | ???????????????????????????????? | | ???????????????????????????????? | +----------------------------------------------------+ Best States ------------- Heat Dissipation 41 Energy Generation 14 Energy Capacity 250 Matter Stores 300 Matter Capacity 300 Sight Range 16 Terrain Scan Density 10 Evasion (%) 55 Defensive Hacking 10 Item Schematics ----------------- None Robot Schematics ------------------ None Fabricated ------------ Nothing Alien Tech Used ----------------- None Achievements -------------- None Challenges ------------ None Game ------ Seed WeaponColdRecalibrator Manual? 0 Play Time 00:20:43 Cumulative 7.3 hours Start 2024.05.15 @ 00:02:31 End 2024.05.15 @ 00:24:01 Sessions 1 Manual Loads 0 Difficulty Rogue Special Mode None Game No. 9 Rogue 9 Adventurer 0 Explorer 0 Win Type - Total 0 Types 0/0/0/0/0/0/0/0/0 Lore% 3 Gallery% 13 Achievement% 10 Wizard Run 0 Options --------- Layout 1 ASCII 0 Keyboard 0 Movement Mouse Keybinds 0 Fullscreen 2 Font 24/Smallcaps Map View 50x35 Zoom Use 0% Tactical HUD 0 Map Filters NONE Filters NONE Steam 1 RUN: 5fc48ad0-1a02-43a3-ae5a-ed511255d333